bitfinex-derivatives/quotes_SOLF0:USTF0_20240830
["timestamp","ask_amount","ask_price","bid_price","bid_amount"]
[1725051620683,0.05101561,136.29,136.27,0.05640138]
[1725051621077,0.05101561,136.29,136.27,3.72560138]
[1725051621381,0.05101561,136.29,136.27,0.05640138]
[1725051621586,3.71981561,136.29,136.27,0.05640138]
[1725051623085,0.05101561,136.29,136.27,11.33640138]
[1725051623285,11.28,136.37,136.28,11.28]
[1725051623581,1.3193,136.37,136.31,11.28]
[1725051624179,3.6674,136.34,136.32,3.6679]
[1725051624384,0.05550017,136.34,136.32,0.05243658]
[1725051624584,0.05550017,136.34,136.33,11.28]
[1725051625580,0.05550017,136.34,136.33,14.9477]
[1725051627183,0.05550017,136.34,136.33,11.28]
[1725051627788,0.05550017,136.34,136.33,14.9477]
[1725051629188,1.427,136.41,136.33,11.28]
[1725051629382,1.427,136.41,136.37,11.28]
[1725051630179,1.427,136.41,136.34,11.28]
[1725051630180,12.707,136.41,136.34,11.28]
[1725051630379,0.05156977,136.39,136.36,0.05299989]
[1725051630982,3.6668,136.37,136.36,0.05299989]
[1725051641496,14.9468,136.37,136.36,0.05299989]
[1725051642195,3.6668,136.37,136.36,0.05299989]
[1725051644291,14.9468,136.37,136.36,0.05299989]
[1725051646186,3.6668,136.37,136.36,0.05299989]
[1725051652399,14.9468,136.37,136.36,0.05299989]
[1725051652600,11.28,136.37,136.14,230.0]
[1725051652790,11.28,136.33,136.26,11.28]
[1725051652993,3.60255281,136.32,136.28,3.6689]
[1725051653190,3.6684,136.31,136.28,3.6689]
[1725051653605,3.72342431,136.31,136.28,3.72072947]
[1725051653805,3.6685,136.3,136.28,0.05182947]
[1725051654007,0.05502431,136.31,136.28,0.05182947]
[1725051654408,3.6685,136.3,136.28,0.05182947]
[1725051654995,3.72342431,136.31,136.28,3.72082947]
[1725051656106,3.6685,136.3,136.28,0.05182947]
[1725051660603,3.6685,136.3,136.28,3.72082947]
[1725051663110,0.05502431,136.31,136.29,11.28]
[1725051663311,11.28,136.39,136.3,12.6004]
[1725051663610,11.28,136.4,136.34,11.28]
[1725051664010,2.7765,136.41,136.34,11.28]
[1725051664011,3.6665,136.38,136.35,3.6672]
[1725051664409,3.72056788,136.38,136.35,3.71679251]
[1725051664607,0.05406788,136.38,136.35,0.04959251]
[1725051664812,3.6667,136.37,136.35,0.04959251]
[1725051669820,3.6667,136.37,136.35,3.71669251]
[1725051670220,3.72056788,136.38,136.35,0.04959251]
[1725051670422,0.05406788,136.38,136.36,3.6667]
[1725051670821,0.05406788,136.38,136.35,11.32959251]
[1725051671025,0.05406788,136.38,136.37,3.6666]
[1725051672449,0.05406788,136.38,136.37,14.9466]
[1725051676034,0.05406788,136.38,136.37,3.6666]
[1725051676331,0.05406788,136.38,136.37,7.25357254]
[1725051679754,3.65723085,136.42,136.4,3.6657]
[1725051679936,3.6652,136.43,136.4,3.6657]
[1725051680730,3.6652,136.43,136.4,3.71909729]
[1725051680933,3.7155041,136.43,136.41,3.6655]
[1725051681140,0.0503041,136.43,136.4,11.33339729]
[1725051681330,0.0503041,136.43,136.42,11.28]
[1725051681636,0.0503041,136.43,136.42,14.9453]
[1725051686239,3.6643,136.46,136.44,3.6647]
[1725051687135,3.69335314,136.46,136.44,3.71131533]
[1725051688243,0.02905314,136.46,136.44,3.71131533]
[1725051689045,0.02905314,136.46,136.44,0.04661533]
[1725051689947,3.69335314,136.46,136.44,0.04661533]
[1725051691546,3.6645,136.45,136.44,0.04661533]
[1725051703858,3.69335314,136.46,136.44,0.04661533]
[1725051706568,3.6645,136.45,136.44,0.04661533]
[1725051709571,0.02905314,136.46,136.44,0.04661533]
[1725051709873,2.7278,136.51,136.45,11.28]
[1725051709874,1.3352,136.51,136.45,11.28]
[1725051710066,252.93108011,136.61,136.44,3.68540801]
[1725051710067,88.47304946,136.64,136.5,11.28]
[1725051710277,11.28,136.6,136.53,11.28]
[1725051710469,11.28,136.6,136.53,14.9421]
[1725051710669,3.6612,136.58,136.53,14.9421]
[1725051710878,3.6612,136.58,136.55,0.04695017]
[1725051711967,11.28,136.57,136.55,0.04695017]
[1725051712175,3.65866133,136.56,136.55,0.04695017]
[1725051712673,7.32016133,136.56,136.55,0.04695017]
[1725051715081,14.93866133,136.56,136.49,11.28]
[1725051715270,11.28,136.54,136.45,2.6707]
[1725051715476,11.28,136.54,136.48,3.6635]
[1725051715676,11.28,136.54,136.47,11.28]
[1725051715879,0.04557624,136.52,136.49,0.05193557]
[1725051717083,0.04557624,136.52,136.5,11.28]
[1725051717277,0.04557624,136.52,136.51,3.58596195]
[1725051717476,0.04557624,136.52,136.5,14.943]
[1725051717977,0.04557624,136.52,136.51,18.62524285]
[1725051718179,0.04557624,136.52,136.51,14.9429]
[1725051718680,0.04557624,136.52,136.51,18.61315639]
[1725051719781,3.6611,136.58,136.55,3.6617]
[1725051720379,3.6608,136.59,136.56,3.6614]
[1725051720884,3.6608,136.59,136.57,3.6612]
[1725051721277,3.6605,136.6,136.57,3.6612]
[1725051721477,1.3039,136.64,136.59,11.28]
[1725051721673,3.6601,136.62,136.6,0.04637955]
[1725051721873,1.3039,136.64,136.6,0.04637955]
[1725051722286,3.6601,136.62,136.6,0.04637955]
[1725051722478,1.3039,136.64,136.6,0.04637955]
[1725051722986,4.9634,136.64,136.6,3.70667955]
[1725051723781,4.9634,136.64,136.61,3.6602]
[1725051724381,4.9634,136.64,136.6,3.70667955]
[1725051724582,3.6597,136.63,136.6,3.70667955]
[1725051724987,1.3039,136.64,136.6,3.70667955]
[1725051725487,4.9634,136.64,136.6,3.70667955]
[1725051725685,1.3039,136.64,136.6,3.70667955]
[1725051726989,1.3039,136.64,136.6,0.04637955]
[1725051726990,3.6599,136.63,136.6,0.04637955]
[1725051727397,29.4039,136.64,136.6,0.04637955]
[1725051727786,3.6597,136.63,136.6,0.04637955]
[1725051727990,29.4039,136.64,136.6,0.04637955]
[1725051728191,3.72465783,136.63,136.6,0.04637955]
[1725051728493,3.6602,136.61,136.6,0.04637955]
[1725051729097,3.6611,136.58,136.54,28.1]
[1725051729592,28.1,136.62,136.55,3.6615]
[1725051729795,3.6609,136.59,136.55,3.6615]
[1725051730093,31.75622484,136.62,136.54,28.1]
[1725051730302,0.04637955,136.58,136.56,0.04617259]
[1725051731495,3.6613,136.57,136.56,0.04617259]
[1725051735995,1.35907955,136.58,136.47,1.3242]
[1725051735996,29.45907955,136.58,136.47,1.3242]
[1725051736198,29.45907955,136.58,136.42,70.5284812]
[1725051736199,28.1,136.55,136.48,3.74624789]
[1725051736497,3.6633,136.5,136.46,3.71074017]
[1725051736696,31.73350172,136.55,136.46,3.71074017]
[1725051736897,31.73350172,136.55,136.44,29.4764]
[1725051737206,0.05490214,136.51,136.48,0.05185655]
[1725051737500,3.6634,136.49,136.48,0.05185655]
[1725051738097,3.6633,136.5,136.48,0.05185655]
[1725051741703,3.6634,136.49,136.48,0.05185655]
[1725051744008,0.05490214,136.51,136.48,0.05185655]
[1725051744009,3.6633,136.5,136.48,0.05185655]
[1725051744310,0.05490214,136.51,136.48,0.05185655]
[1725051745607,3.6634,136.49,136.48,0.05185655]
[1725051748641,3.6641,136.47,136.44,3.6646]
[1725051749512,3.71698011,136.47,136.44,3.71956157]
[1725051749913,0.05288011,136.47,136.44,3.70724265]
[1725051750420,3.71688011,136.47,136.45,3.6643]
[1725051750735,3.71688011,136.47,136.44,3.70724265]
[1725051750736,0.05288011,136.47,136.44,0.05496157]
[1725051751313,3.6644,136.46,136.44,0.05496157]
[1725051751713,0.05288011,136.47,136.44,0.05496157]
[1725051752113,3.6645,136.45,136.44,0.05496157]
[1725051757523,28.1,136.47,136.37,3.63466337]
[1725051757728,28.1,136.47,136.36,29.4662]
[1725051757928,3.6657,136.41,136.38,3.6661]
[1725051758122,3.6657,136.41,136.38,7.35006182]
[1725051758532,3.71855836,136.41,136.38,7.40491977]
[1725051759735,3.6661,136.39,136.38,0.05485795]
[1725051759922,0.05285836,136.41,136.38,0.05485795]
[1725051760533,3.6659,136.4,136.38,0.05485795]
[1725051760924,3.71855836,136.41,136.38,0.05485795]
[1725051761533,3.71855836,136.41,136.38,3.72105795]
[1725051763329,3.6659,136.4,136.38,3.72105795]
[1725051765035,3.6659,136.4,136.38,0.05485795]
[1725051766037,3.6659,136.4,136.38,3.72115795]
[1725051766240,3.6661,136.39,136.38,0.05485795]
[1725051768437,3.70153554,136.39,136.32,3.72096137]
[1725051768737,28.1,136.37,136.27,28.1]
[1725051768933,3.6681,136.32,136.27,28.1]
[1725051769128,28.1,136.37,136.3,3.6684]
[1725051769332,0.04715467,136.35,136.32,0.05028982]
[1725051769740,1.82,136.34,136.33,3.6676]
[1725051770042,1.82,136.34,136.33,14.9276]
[1725051775046,6.35,136.34,136.33,14.9276]
[1725051776742,6.35,136.34,136.33,3.6676]
[1725051782142,6.35,136.34,136.33,14.9276]
[1725051782847,12.32,136.34,136.33,14.9276]
[1725051789353,12.32,136.34,136.33,3.6676]
[1725051789758,23.58,136.34,136.32,0.05028982]
[1725051790050,3.71911958,136.33,136.32,0.05028982]
[1725051790246,23.0923,136.34,136.32,0.05028982]
[1725051790486,7.31642615,136.33,136.32,0.05028982]
[1725051790647,7.31642615,136.33,136.26,11.26]
[1725051790648,23.0923,136.34,136.26,11.26]
[1725051790850,11.26,136.32,136.27,3.6278281]
[1725051791154,3.6681,136.32,136.29,3.6686]
[1725051791654,3.72067415,136.32,136.29,3.7243351]
[1725051792055,1.82,136.31,136.29,3.7243351]
[1725051792447,4.81,136.3,136.29,3.7243351]
[1725051794765,16.07,136.3,136.21,1.4003]
[1725051795053,16.07,136.3,136.21,3.61952614]
[1725051795054,11.26,136.28,136.21,3.61952614]
[1725051795254,11.26,136.28,136.19,1.3209]
[1725051795255,3.6695,136.27,136.22,3.6705]
[1725051795457,9.5295,136.27,136.22,3.6705]
[1725051795679,5.86,136.27,136.22,11.26]
[1725051795849,0.05638773,136.26,136.25,3.6699]
[1725051796256,0.05638773,136.26,136.23,0.05033655]
[1725051796958,0.05638773,136.26,136.24,3.6701]
[1725051797349,0.05638773,136.26,136.23,0.05033655]
[1725051797559,0.05638773,136.26,136.24,3.6701]
[1725051798555,4.53,136.25,136.24,3.6701]
[1725051800255,4.53,136.25,136.23,3.72053655]
[1725051801061,4.53,136.25,136.24,3.6701]
[1725051804662,4.53,136.25,136.23,3.72073655]
[1725051804972,4.53,136.25,136.23,0.05033655]
[1725051805365,8.1999,136.25,136.23,0.05033655]
[1725051805564,4.53,136.25,136.23,0.05033655]
[1725051806559,3.6701,136.24,136.23,0.05033655]
[1725051806761,4.53,136.25,136.23,0.05033655]
[1725051807466,8.2,136.25,136.23,0.05033655]
[1725051809062,4.58,136.24,136.23,0.05033655]
[1725051809281,10.12,136.24,136.23,0.05033655]
[1725051810865,11.94,136.24,136.23,0.05033655]
[1725051811663,11.94,136.24,136.23,3.72073655]
[1725051816273,15.6101,136.24,136.23,0.05033655]
[1725051816472,11.94,136.24,136.23,0.05033655]
[1725051817380,11.94,136.24,136.23,3.72073655]
[1725051818385,16.47,136.24,136.23,3.72073655]
[1725051820826,16.47,136.24,136.23,0.05033655]
[1725051821287,20.1401,136.24,136.23,0.05033655]
[1725051821483,25.13847222,136.24,136.23,0.05033655]
[1725051822280,3.6706,136.23,136.2,3.671]
[1725051823289,3.71990718,136.23,136.21,3.6709]
[1725051824181,5.71,136.22,136.21,3.6709]
[1725051829792,7.36,136.24,136.2,28.23067023]
[1725051829990,7.36,136.24,136.23,28.18]
[1725051831092,11.89,136.24,136.23,28.18]
[1725051831284,11.89,136.24,136.23,31.8504]
[1725051832703,11.89,136.24,136.23,3.6704]
[1725051840194,11.89,136.24,136.23,14.9504]
[1725051843605,4.53,136.24,136.23,14.9504]
[1725051843894,1.5319,136.29,136.23,11.28]
[1725051844093,0.21,136.29,136.28,11.28]
[1725051844285,3.668,136.32,136.29,3.6685]
[1725051844686,0.0491883,136.32,136.29,0.0554051]
[1725051845091,11.28,136.3,136.29,0.0554051]
[1725051845402,11.28,136.3,136.23,11.28]
[1725051845699,2.7913,136.29,136.23,11.28]
[1725051846191,3.8791,136.28,136.25,3.72599601]
[1725051846396,0.05305782,136.27,136.25,3.72599601]
[1725051847598,0.05305782,136.27,136.25,0.05629601]
[1725051848301,3.72245782,136.27,136.25,0.05629601]
[1725051849696,0.05305782,136.27,136.25,0.05629601]
[1725051850899,3.72245782,136.27,136.25,0.05629601]
[1725051853299,3.72245782,136.27,136.25,3.72619601]
[1725051854506,3.72245782,136.27,136.25,0.05629601]
[1725051855597,3.6696,136.26,136.25,0.05629601]
[1725051855796,0.05305782,136.27,136.19,11.28]
[1725051855797,11.33305782,136.27,136.19,11.28]
[1725051855997,11.28,136.27,136.19,11.28]
[1725051856295,11.28,136.27,136.22,3.6706]
[1725051856296,3.67,136.25,136.22,3.6706]
[1725051856501,11.28,136.27,136.19,11.28]
[1725051856898,3.71663171,136.24,136.22,0.0504145]
[1725051860205,3.6704,136.23,136.22,0.0504145]
[1725051862253,11.28,136.23,136.13,24.42007848]
[1725051862503,11.28,136.23,136.13,15.01330397]
[1725051862504,11.28,136.21,136.13,15.01330397]
[1725051862903,11.28,136.2,136.13,7.40610397]
[1725051863297,0.0541965,136.18,136.15,0.04708169]
[1725051863503,3.6725,136.16,136.15,0.04708169]
[1725051864401,0.0541965,136.18,136.15,0.04708169]
[1725051864402,3.672,136.17,136.15,0.04708169]
[1725051865121,0.0541965,136.18,136.15,0.04708169]
[1725051865501,0.0541965,136.18,136.15,11.32708169]
[1725051865824,0.0541965,136.18,136.16,3.6721]
[1725051865999,0.0541965,136.18,136.16,11.28]
[1725051866412,0.0541965,136.18,136.17,3.672]
[1725051867211,6.7441965,136.18,136.17,3.672]
[1725051868003,6.7441965,136.18,136.17,31.852]
[1725051872435,1.3881,136.26,136.23,3.6704]
[1725051873304,1.43933382,136.26,136.23,3.72223826]
[1725051873513,5.10893382,136.26,136.23,3.72223826]
[1725051873712,0.21,136.25,136.23,3.72223826]
[1725051875916,0.21,136.25,136.23,0.05183826]
[1725051876120,3.88,136.25,136.23,0.05183826]
[1725051877829,3.6701,136.24,136.23,0.05183826]
[1725051878523,3.6704,136.23,136.16,1.3623]
[1725051878920,3.6704,136.23,136.2,3.6711]
[1725051879525,3.72417625,136.23,136.2,3.72437339]
[1725051882427,3.6707,136.22,136.2,3.72437339]
[1725051883120,3.6709,136.21,136.2,0.05327339]
[1725051884227,4.9959,136.21,136.2,0.05327339]
[1725051884638,1.325,136.21,136.2,0.05327339]
[1725051885528,4.9959,136.21,136.2,0.05327339]
[1725051889324,5.2059,136.21,136.2,0.05327339]
[1725051891126,3.6714,136.2,136.17,3.6719]
[1725051891351,3.6714,136.2,136.13,67.23873865]
[1725051891352,11.28,136.2,136.14,11.28]
[1725051891630,1.535,136.21,136.12,11.28]
[1725051891631,3.672,136.17,136.12,11.28]
[1725051891834,14.87465609,136.19,136.12,11.28]
[1725051892023,1.535,136.21,136.16,3.6721]
[1725051892228,3.6716,136.19,136.17,0.0506239]
[1725051893226,3.6717,136.18,136.17,0.0506239]
[1725051899739,3.6717,136.19,136.17,3.7226239]
[1725051901140,3.72230034,136.2,136.18,3.6716]
[1725051901339,0.05110034,136.2,136.17,0.0506239]
[1725051901640,0.05110034,136.2,136.17,11.3306239]
[1725051901838,0.05110034,136.2,136.19,3.6715]
[1725051902143,0.26110034,136.2,136.19,3.6715]
[1725051912272,0.26110034,136.2,136.19,14.9515]
[1725051913369,16.29751826,136.27,136.23,3.6704]
[1725051913662,3.6699,136.25,136.21,3.75211854]
[1725051913861,3.6699,136.25,136.19,11.28]
[1725051914060,3.6699,136.25,136.22,3.6705]
[1725051914266,3.6699,136.25,136.21,3.70422359]
[1725051914457,0.05593922,136.25,136.22,0.04838901]
[1725051914654,0.05593922,136.25,136.23,3.6704]
[1725051917167,0.05593922,136.25,136.24,3.6701]
[1725051923561,3.72583922,136.25,136.23,3.6702]
[1725051923758,15.00583922,136.25,136.23,3.6702]
[1725051930264,3.6701,136.24,136.22,3.71888901]
[1725051931069,11.33593922,136.25,136.22,11.32838901]
[1725051931070,0.05593922,136.25,136.22,11.32838901]
[1725051931267,0.05593922,136.25,136.23,11.28]
[1725051932275,3.6692,136.28,136.23,11.28]
[1725051932782,3.6692,136.28,136.26,3.6694]
[1725051933475,3.72339664,136.28,136.26,3.72540319]
[1725051933971,0.05419664,136.28,136.27,3.6693]
[1725051935469,0.05419664,136.28,136.27,14.9493]
[1725051936671,7.28508444,136.34,136.3,3.6685]
[1725051936873,12.6683,136.35,136.3,3.6685]
[1725051937272,16.3356,136.35,136.3,3.6685]
[1725051937472,19.920435,136.35,136.3,3.6685]
[1725051937672,3.71839963,136.34,136.31,0.05361799]
[1725051940480,11.33099963,136.34,136.31,0.05361799]
[1725051940778,11.28,136.32,136.31,0.05361799]
[1725051941677,14.948,136.32,136.31,0.05361799]
[1725051944787,3.6678,136.33,136.31,0.05361799]
[1725051946077,13.96189963,136.34,136.31,0.05361799]
[1725051946383,11.28,136.33,136.31,0.05361799]
[1725051946882,3.668,136.32,136.31,0.05361799]
[1725051950287,3.6679,136.33,136.31,0.05361799]
[1725051951789,3.668,136.32,136.31,0.05361799]
[1725051952694,14.948,136.32,136.31,0.05361799]
[1725051953390,3.668,136.32,136.31,0.05361799]
[1725051953583,14.948,136.32,136.31,0.05361799]
[1725051954390,11.28,136.32,136.23,11.28]
[1725051954696,11.28,136.32,136.25,11.28]
[1725051955082,3.6685,136.3,136.26,3.6694]
[1725051955285,0.05130146,136.29,136.27,0.05110243]
[1725051955485,0.04896353,136.29,136.28,14.9491]
[1725051970222,0.04896353,136.29,136.28,3.6691]
[1725051974713,0.04896353,136.29,136.27,15.00020243]
[1725051974908,0.04896353,136.29,136.27,0.05110243]
[1725051975212,3.6691,136.28,136.27,0.05110243]
[1725051975708,0.04896353,136.29,136.27,0.05110243]
[1725051975942,0.04896353,136.29,136.28,11.28]
[1725051976208,3.584835,136.35,136.28,11.28]
[1725051976407,11.28,136.37,136.31,14.9481]
[1725051976408,3.6675,136.34,136.31,14.9481]
[1725051976807,3.6673,136.35,136.32,3.6678]
[1725051977116,3.71842701,136.35,136.32,3.72089657]
[1725051977417,3.71842701,136.35,136.32,0.05309657]
[1725051978402,3.71842701,136.35,136.33,3.6677]
[1725051979908,0.05112701,136.35,136.34,14.9474]
[1725051981220,0.05112701,136.35,136.33,3.6676]
[1725051985617,0.05112701,136.35,136.34,3.6674]
[1725051987621,0.05112701,136.35,136.34,14.9474]
[1725051988315,94.86241159,136.47,136.39,11.28]
[1725051988508,11.28,136.46,136.39,11.28]
[1725051988718,3.60216383,136.45,136.41,3.6653]
[1725051989019,1.3492,136.46,136.37,3.61242954]
[1725051989220,0.05036514,136.43,136.4,3.71685855]
[1725051989613,3.71556514,136.43,136.4,3.71685855]
[1725051993119,0.05036514,136.43,136.41,3.6654]
[1725051993510,0.05036514,136.43,136.4,0.05115855]
[1725051994621,0.05036514,136.43,136.42,3.6653]
[1725051996815,0.05036514,136.43,136.41,3.6654]
[1725051997522,0.05036514,136.43,136.4,0.05115855]
[1725051998221,3.6656,136.41,136.4,0.05115855]
[1725052000428,1.4254,136.44,136.37,3.70437411]
[1725052000616,1.4254,136.44,136.34,1.3107]
[1725052001027,5.0903,136.44,136.41,3.6654]
[1725052001520,5.13796608,136.44,136.41,3.71469432]
[1725052003321,1.47306608,136.44,136.41,0.04929432]
[1725052003520,1.47306608,136.44,136.34,5.00857029]
[1725052003715,1.4254,136.44,136.35,3.667]
[1725052003919,1.4254,136.44,136.32,4.9758212]
[1725052004119,1.4254,136.44,136.32,1.3234]
[1725052004322,3.6662,136.39,136.36,3.6668]
[1725052004526,3.71401809,136.39,136.37,0.05513685]
[1725052004822,3.71401809,136.39,136.37,3.72163685]
[1725052005019,0.04781809,136.39,136.37,3.72163685]
[1725052005823,3.71401809,136.39,136.37,3.72163685]
[1725052007634,0.04781809,136.39,136.37,3.72163685]
[1725052008530,3.71391809,136.39,136.37,3.72163685]
[1725052017627,0.04781809,136.39,136.37,3.72163685]
[1725052020341,3.71391809,136.39,136.37,3.72163685]
[1725052020743,3.71391809,136.39,136.38,3.6664]
[1725052020744,0.04781809,136.39,136.38,3.6664]
[1725052029639,0.04781809,136.39,136.37,3.72163685]
[1725052029841,3.66341695,136.38,136.37,0.05513685]
[1725052030037,5.00600332,136.38,136.31,3.67697837]
[1725052030269,3.6667,136.37,136.32,3.72443955]
[1725052030444,3.6667,136.37,136.27,2.7555]
[1725052030647,3.6667,136.37,136.34,3.6673]
[1725052030946,3.71474511,136.37,136.34,3.71863698]
[1725052031146,3.6669,136.36,136.34,0.05133698]
[1725052031950,3.6672,136.35,136.34,0.05133698]
[1725052032546,3.667,136.36,136.34,0.05133698]
[1725052034357,3.6669,136.36,136.34,3.71863698]
[1725052035249,3.6669,136.36,136.34,0.05133698]
[1725052037153,0.04804511,136.37,136.34,0.05133698]
[1725052038354,3.6672,136.35,136.34,0.05133698]
[1725052055387,3.668,136.32,136.27,6.42886524]
[1725052055562,3.668,136.32,136.27,2.7555]
[1725052056260,0.04746694,136.31,136.28,0.05621075]
[1725052056563,0.04746694,136.31,136.3,3.6684]
[1725052064667,0.04746694,136.31,136.28,0.05621075]
[1725052065369,3.6686,136.3,136.28,3.72511075]
[1725052065566,3.6686,136.3,136.28,0.05621075]
[1725052066867,3.71576694,136.31,136.28,3.72521075]
[1725052067265,0.04746694,136.31,136.28,0.05621075]
[1725052068273,0.04746694,136.31,136.3,3.6685]
[1725052075201,99.30944333,136.45,136.28,0.05621075]
[1725052075372,4.129,136.44,136.28,2.7063]
[1725052075573,3.6656,136.41,136.29,7.3376]
[1725052075774,4.129,136.44,136.29,7.3376]
[1725052075974,0.05019977,136.38,136.35,0.04709624]
[1725052076174,3.666,136.4,136.29,7.3376]
[1725052076378,4.129,136.44,136.36,3.6668]
[1725052076775,0.05374896,136.41,136.39,0.05548134]
[1725052077192,3.666,136.4,136.39,0.05548134]
[1725052077479,0.05374896,136.41,136.28,1.3075]
[1725052077781,1.3048,136.39,136.28,1.3075]
[1725052077977,1.4373,136.38,136.28,1.3075]
[1725052078184,5.09323252,136.38,136.28,1.3075]
[1725052078379,0.05493078,136.34,136.32,3.72351097]
[1725052078684,0.05493078,136.34,136.32,0.05571097]
[1725052079177,0.05493078,136.34,136.18,30.14412052]
[1725052079385,5.09323252,136.38,136.21,1.381]
[1725052079777,3.6684,136.31,136.26,3.6693]
[1725052079978,3.6684,136.31,136.26,3.75321723]
[1725052080181,0.04918478,136.3,136.27,0.05626399]
[1725052080420,3.7214415,136.3,136.27,0.05444449]
[1725052080688,0.0529415,136.3,136.27,0.05444449]
[1725052080890,0.0529415,136.3,136.27,3.72374449]
[1725052082389,3.7214415,136.3,136.27,3.72374449]
[1725052082875,3.7214415,136.3,136.27,0.05444449]
[1725052083989,0.0529415,136.3,136.27,0.05444449]
[1725052084289,1.4297,136.37,136.26,3.69820623]
[1725052084482,5.0965,136.37,136.27,2.7866]
[1725052084787,1.4297,136.37,136.27,2.7866]
[1725052085282,0.05344247,136.33,136.32,3.668]
[1725052085591,0.05354115,136.34,136.31,0.0479739]
[1725052086295,0.05354115,136.34,136.32,3.668]
[1725052087178,3.72104115,136.34,136.31,3.7161739]
[1725052087379,0.05354115,136.34,136.31,0.0479739]
[1725052088379,0.05354115,136.34,136.31,3.7159739]
[1725052088809,0.05354115,136.34,136.31,0.0479739]
[1725052089688,0.05354115,136.34,136.32,3.6679]
[1725052091093,0.05354115,136.34,136.33,3.6677]
[1725052103590,0.05354115,136.34,136.31,0.0479739]
[1725052103591,2.7665,136.42,136.38,3.6663]
[1725052103993,3.6657,136.41,136.38,3.6663]
[1725052104391,3.71862267,136.41,136.38,3.72237284]
[1725052105291,3.71862267,136.41,136.39,3.6661]
[1725052105487,3.71862267,136.41,136.38,0.05607284]
[1725052105684,3.71862267,136.41,136.38,3.72217284]
[1725052105894,3.71862267,136.41,136.38,0.05607284]
[1725052106796,3.71862267,136.41,136.38,3.72227284]
[1725052108792,3.6659,136.4,136.38,0.05607284]
[1725052114301,3.6659,136.4,136.38,3.72237284]
[1725052115501,0.05292267,136.41,136.38,0.05607284]
[1725052115706,2.7357,136.51,136.38,0.05607284]
[1725052115908,2.7357,136.51,136.38,3.72031334]
[1725052116202,3.6635,136.49,136.45,3.6643]
[1725052116605,3.73277793,136.48,136.45,3.6643]
[1725052116807,3.78217686,136.48,136.46,0.05384543]
[1725052117104,3.60868378,136.47,136.46,0.05384543]
[1725052117315,3.76872459,136.48,136.46,0.05384543]
[1725052117501,0.04939893,136.48,136.46,0.05384543]
[1725052118119,3.7412473,136.48,136.46,0.05384543]
[1725052119810,0.04939893,136.48,136.46,0.05384543]
[1725052121113,0.04939893,136.48,136.47,3.6639]
[1725052129009,89.03136487,136.62,136.46,0.05384543]
[1725052129207,89.03136487,136.62,136.44,8.6762]
[1725052129208,1.3252,136.58,136.44,8.6762]
[1725052129409,1.3252,136.58,136.44,12.26640588]
[1725052129613,1.3252,136.58,136.45,7.3285]
[1725052130021,0.05485773,136.53,136.52,3.6624]
[1725052130212,0.05554073,136.54,136.51,0.04921958]
[1725052130412,3.6614,136.57,136.51,0.05328008]
[1725052130635,0.04932993,136.54,136.51,0.05328008]
[1725052131119,0.04932993,136.54,136.53,3.6623]
[1725052132022,92.67834882,136.62,136.53,3.75293823]
[1725052132224,92.67834882,136.62,136.47,7.3277]
[1725052132425,3.6605,136.6,136.47,7.3277]
[1725052132925,0.04964477,136.55,136.52,0.04762123]
[1725052133119,0.04964477,136.55,136.53,3.58088513]
[1725052134321,0.04964477,136.55,136.54,3.6621]
[1725052137525,0.04964477,136.55,136.53,3.6622]
[1725052137817,0.04964477,136.55,136.52,0.04762123]
[1725052138222,0.04964477,136.55,136.52,3.71002123]
[1725052138832,0.04964477,136.55,136.52,0.04762123]
[1725052139232,0.04964477,136.55,136.52,3.71002123]
[1725052140536,0.04964477,136.55,136.53,3.6623]
[1725052142525,0.04964477,136.55,136.52,3.71012123]
[1725052143738,0.04964477,136.55,136.53,3.6623]
[1725052144736,0.04964477,136.55,136.52,3.71012123]
[1725052147442,4.05964477,136.55,136.52,3.71012123]
[1725052151836,4.05964477,136.55,136.53,3.6623]
[1725052153542,4.05964477,136.55,136.54,3.6621]
[1725052160551,10.14,136.56,136.55,3.6618]
[1725052165655,7.981,136.56,136.55,3.6618]
[1725052166753,4.4,136.56,136.55,3.6618]
[1725052168756,1.42406851,136.57,136.56,3.6615]